fUST/lending_fUST_20241111
["ID","MTS","AMOUNT","RATE_DAILY","PERIOD"]
[341921159,1731287448788,-1000.0,0.00024223,7]
[341921160,1731287448797,-1000.0,0.00024223,7]
[341921161,1731287448808,-1000.0,0.00024223,7]
[341921162,1731287448820,-1000.0,0.00024223,7]
[341921163,1731287448830,-1000.0,0.00024223,7]
[341921164,1731287448840,-1000.0,0.00024223,7]
[341921165,1731287448849,-1000.0,0.00024223,7]
[341921166,1731287448859,-1000.0,0.00024223,7]
[341921167,1731287448868,-1000.0,0.00024223,7]
[341921168,1731287448877,-569.95341095,0.00024223,7]
[341921169,1731287448886,-377.953128,0.00024223,7]
[341921170,1731287448895,-377.953128,0.00024223,7]
[341921171,1731287448904,-377.953128,0.00024223,7]
[341921172,1731287448913,-377.953128,0.00024223,7]
[341921173,1731287448923,-377.953128,0.00024223,7]
[341921174,1731287448932,-377.953128,0.00024223,7]
[341921175,1731287448941,-377.953128,0.00024223,7]
[341921176,1731287448951,-377.953128,0.00024223,7]
[341921177,1731287448960,-377.953128,0.00024223,7]
[341921178,1731287448969,-377.953128,0.00024223,7]
[341921179,1731287448979,-377.953128,0.00024223,7]
[341921180,1731287448989,-377.953128,0.00024223,7]
[341921181,1731287448998,-377.953128,0.00024223,7]
[341921182,1731287449007,-377.953128,0.00024223,7]
[341921183,1731287449016,-377.953128,0.00024223,7]
[341921184,1731287449025,-377.953125,0.00024223,7]
[341921185,1731287449034,-334.250793,0.00024223,7]
[341921186,1731287449043,-334.250793,0.00024223,7]
[341921187,1731287449056,-334.250793,0.00024223,7]
[341921188,1731287449065,-151.0,0.00024223,7]
[341921189,1731287449074,-151.0,0.00024223,7]
[341921190,1731287449084,-334.250793,0.00024223,7]
[341921191,1731287449093,-151.0,0.00024223,7]
[341921192,1731287449102,-334.250793,0.00024223,7]
[341921193,1731287449111,-151.0,0.00024223,7]
[341921194,1731287449124,-151.0,0.00024223,7]
[341921195,1731287449134,-151.0,0.00024223,7]
[341921196,1731287449143,-334.250793,0.00024223,7]
[341921197,1731287449152,-151.0,0.00024223,7]
[341921198,1731287449161,-334.250793,0.00024223,7]
[341921199,1731287449170,-151.0,0.00024223,7]
[341921200,1731287449179,-334.250793,0.00024223,7]
[341921201,1731287449189,-334.250793,0.00024223,7]
[341921202,1731287449198,-334.250793,0.00024223,7]
[341921203,1731287449207,-334.250793,0.00024223,7]
[341921204,1731287449216,-334.250793,0.00024223,7]
[341921205,1731287449225,-151.0,0.00024223,7]
[341921206,1731287449236,-334.250793,0.00024223,7]
[341921207,1731287449246,-151.0,0.00024223,7]
[341921208,1731287449256,-334.250793,0.00024223,7]
[341921209,1731287449265,-151.0,0.00024223,7]
[341921210,1731287449274,-334.250793,0.00024223,7]
[341921211,1731287449283,-199.991712,0.00024223,7]
[341921212,1731287449425,-151.0,0.00024223,7]
[341921213,1731287449436,-334.250789,0.00024223,7]
[341921214,1731287449445,-199.991712,0.00024223,7]
[341921215,1731287449456,-151.0,0.00024223,7]
[341921216,1731287449466,-199.991712,0.00024223,7]
[341921217,1731287449475,-292.603323,0.00024223,7]
[341921218,1731287449484,-199.991712,0.00024223,7]
[341921219,1731287449493,-199.991712,0.00024223,7]
[341921220,1731287449503,-199.991712,0.00024223,7]
[341921221,1731287449512,-199.991712,0.00024223,7]
[341921222,1731287449522,-199.991714,0.00024223,7]
[341921223,1731287449531,-151.0,0.00024223,7]
[341921224,1731287449540,-151.0,0.00024223,7]
[341921225,1731287449552,-151.0,0.00024223,7]
[341921226,1731287449562,-151.0,0.00024223,7]
[341921227,1731287449571,-251.964599,0.00024223,7]
[341921228,1731287449580,-575.88216,0.00024223,7]
[341921229,1731287449589,-575.88216,0.00024223,7]
[341921230,1731287449599,-575.88216,0.00024223,7]
[341921231,1731287449609,-575.88216,0.00024223,7]
[341921232,1731287449618,-575.88216,0.00024223,7]
[341921233,1731287449627,-575.88216,0.00024223,7]
[341921234,1731287449637,-575.88216,0.00024223,7]
[341921235,1731287449646,-575.882166,0.00024223,7]
[341921236,1731287449656,-203.163928,0.00024223,7]
[341921237,1731287449665,-203.163928,0.00024223,7]
[341921238,1731287449674,-203.163928,0.00024223,7]
[341921239,1731287449683,-203.163928,0.00024223,7]
[341921240,1731287449693,-517.51820838,0.00024231,2]
[341921241,1731287449702,-500.0,0.00024273,2]
[341921242,1731287449711,-500.0,0.00024273,2]
[341921243,1731287449720,-500.0,0.00024273,2]
[341921244,1731287449732,-500.0,0.00024273,2]
[341921245,1731287449741,-500.0,0.00024273,2]
[341921246,1731287449751,-517.51820838,0.0002434,2]
[341921247,1731287449760,-12344.70000012,0.00024399,2]
[341921248,1731287449769,-637.476396,0.00024399,7]
[341921249,1731287449778,-299.954602,0.00024399,7]
[341921250,1731287449787,-299.954602,0.00024399,7]
[341921251,1731287449796,-309.073197,0.00024399,7]
[341921252,1731287449809,-309.073197,0.00024399,7]
[341921253,1731287449818,-309.073197,0.00024399,7]
[341921254,1731287449827,-309.073197,0.00024399,7]
[341921255,1731287449837,-1920.504273,0.00024399,7]
[341921256,1731287449846,-1920.504273,0.00024399,7]
[341921257,1731287449855,-151.0,0.00024399,7]
[341921258,1731287449864,-151.0,0.00024399,7]
[341921259,1731287449873,-173.424392,0.00024399,7]
[341921260,1731287449883,-173.424392,0.00024399,7]
[341921261,1731287449892,-173.424392,0.00024399,7]
[341921262,1731287449901,-173.424394,0.00024399,7]
[341921263,1731287449910,-201.444581,0.00024399,7]
[341921264,1731287449919,-201.444581,0.00024399,7]
[341921265,1731287449929,-201.444581,0.00024399,7]
[341921266,1731287449938,-201.444573,0.00024399,7]
[341921267,1731287449948,-465.47555,0.00024399,7]
[341921268,1731287449957,-465.47555,0.00024399,7]
[341921269,1731287449966,-465.47555,0.00024399,7]
[341921270,1731287449975,-465.47555,0.00024399,7]
[341921271,1731287449985,-1162.574766,0.00024399,7]
[341921272,1731287449994,-1162.574766,0.00024399,7]
[341921273,1731287450003,-1162.574766,0.00024399,7]
[341921274,1731287450013,-1162.574766,0.00024399,7]
[341921275,1731287450022,-907.609362,0.00024399,7]
[341921276,1731287450031,-907.609362,0.00024399,7]
[341921277,1731287450040,-907.609362,0.00024399,7]
[341921278,1731287450051,-151.0,0.00024399,7]
[341921279,1731287450060,-907.609362,0.00024399,7]
[341921280,1731287450069,-151.0,0.00024399,7]
[341921281,1731287450079,-163.657646,0.00024399,7]
[341921282,1731287450088,-163.657646,0.00024399,7]
[341921283,1731287450097,-163.657646,0.00024399,7]
[341921284,1731287450106,-163.657636,0.00024399,7]
[341921285,1731287450126,-151.0,0.00024399,7]
[341921286,1731287450136,-151.0,0.00024399,7]
[341921287,1731287450145,-517.51820838,0.00024448,2]
[341921288,1731287450155,-3000.0,0.00024456,2]
[341921289,1731287450164,-637.476396,0.00024456,7]
[341921290,1731287450174,-299.954602,0.00024456,7]
[341921291,1731287450184,-299.954602,0.00024456,7]
[341921292,1731287450193,-309.073197,0.00024456,7]
[341921293,1731287450202,-309.073197,0.00024456,7]
[341921294,1731287450211,-1920.504273,0.00024456,7]
[341921295,1731287450221,-1920.504273,0.00024456,7]
[341921296,1731287450230,-465.47555,0.00024456,7]
[341921297,1731287450239,-465.47555,0.00024456,7]
[341921298,1731287450248,-907.609362,0.00024456,7]
[341921299,1731287450257,-907.609362,0.00024456,7]
[341921300,1731287450266,-500.0,0.00024473,2]
[341921301,1731287450275,-500.0,0.00024473,2]
[341921302,1731287450285,-500.0,0.00024473,2]
[341921303,1731287450294,-500.0,0.00024473,2]
[341921304,1731287450305,-500.0,0.00024473,2]
[341921305,1731287450315,-500.0,0.00024473,2]
[341921306,1731287450325,-410.74914156,0.00024473,2]
[341921307,1731287450334,-500.0,0.00024473,2]
[341921308,1731287450343,-500.0,0.00024473,2]
[341921309,1731287450352,-500.0,0.00024473,2]
[341921310,1731287450361,-500.0,0.00024473,2]
[341921311,1731287450370,-230.23701868,0.00024473,2]
[341921312,1731287450380,-637.476396,0.00024473,7]
[341921313,1731287450389,-309.073197,0.00024473,7]
[341921314,1731287450398,-309.073205,0.00024473,7]
[341921315,1731287450407,-465.47555,0.00024473,7]
[341921316,1731287450416,-465.475547,0.00024473,7]
[341921317,1731287450426,-907.609362,0.00024473,7]
[341921318,1731287450434,-907.60935689,0.00024473,7]
[341921319,1731287450443,-299.954602,0.00024474,7]
[341921320,1731287450452,-299.954602,0.00024474,7]
[341921321,1731287450462,-1920.504273,0.00024474,7]
[341921322,1731287450471,-1920.504273,0.00024474,7]
[341921323,1731287450480,-150.0,0.00024475,2]
[341921324,1731287450489,-202.919,0.00024475,2]
[341921325,1731287450499,-159.442251,0.00024475,7]
[341921326,1731287450508,-159.442251,0.00024475,7]
[341921327,1731287450517,-1162.564185,0.00024475,7]
[341921328,1731287450526,-1162.564185,0.00024475,7]
[341921329,1731287450535,-203.2811,0.00024475,2]
[341921330,1731287450545,-203.2811,0.00024475,2]
[341921331,1731287450556,-637.476396,0.00024475,7]
[341921332,1731287450565,-637.476396,0.00024475,7]
[341921333,1731287450574,-637.476398,0.00024475,7]
[341921334,1731287450584,-299.954602,0.00024475,7]
[341921335,1731287450593,-299.954602,0.00024475,7]
[341921336,1731287450602,-299.954602,0.00024475,7]
[341921337,1731287450611,-299.954594,0.00024475,7]
[341921338,1731287450620,-1920.504273,0.00024475,7]
[341921339,1731287450629,-1920.504273,0.00024475,7]
[341921340,1731287450639,-1920.504273,0.00024475,7]
[341921341,1731287450648,-1920.50427221,0.00024475,7]
[341921342,1731287450657,-159.442251,0.00024497,7]
[341921343,1731287450666,-159.442251,0.00024497,7]
[341921344,1731287450675,-1162.564185,0.00024497,7]
[341921345,1731287450684,-1162.564185,0.00024497,7]
[341921346,1731287450693,-203.2811,0.00024497,2]
[341921347,1731287450702,-203.2811,0.00024497,2]
[341921348,1731287450711,-159.442251,0.00024499,7]
[341921349,1731287450720,-159.442251,0.00024499,7]
[341921350,1731287450732,-159.442251,0.00024499,7]
[341921351,1731287450742,-159.442251,0.00024499,7]
[341921352,1731287450751,-159.442251,0.00024499,7]
[341921353,1731287450760,-159.442251,0.00024499,7]
[341921354,1731287450771,-159.442251,0.00024499,7]
[341921355,1731287450780,-159.442251,0.00024499,7]
[341921356,1731287450789,-159.442251,0.00024499,7]
[341921357,1731287450798,-159.442251,0.00024499,7]
[341921358,1731287450810,-159.442251,0.00024499,7]
[341921359,1731287450819,-159.442251,0.00024499,7]
[341921360,1731287450828,-159.442251,0.00024499,7]
[341921361,1731287450838,-159.442248,0.00024499,7]
[341921362,1731287450847,-1162.564185,0.00024499,7]
[341921363,1731287450857,-1162.564185,0.00024499,7]
[341921364,1731287450866,-1162.564185,0.00024499,7]
[341921365,1731287450875,-1162.564185,0.00024499,7]
[341921366,1731287450884,-1162.564185,0.00024499,7]
[341921367,1731287450893,-1162.564185,0.00024499,7]
[341921368,1731287450903,-1162.564185,0.00024499,7]
[341921369,1731287450912,-1162.564185,0.00024499,7]
[341921370,1731287450921,-1162.564185,0.00024499,7]
[341921371,1731287450934,-1162.564185,0.00024499,7]
[341921372,1731287450948,-1162.564185,0.00024499,7]
[341921373,1731287450962,-1162.564185,0.00024499,7]
[341921374,1731287450975,-1162.564185,0.00024499,7]
[341921375,1731287450986,-1162.564188,0.00024499,7]
[341921376,1731287450997,-203.2811,0.00024499,2]
[341921377,1731287451010,-203.2811,0.00024499,2]
[341921378,1731287451021,-203.2811,0.00024499,2]
[341921379,1731287451034,-203.2811,0.00024499,2]
[341921380,1731287451046,-203.2811,0.00024499,2]
[341921381,1731287451061,-203.2811,0.00024499,2]
[341921382,1731287451074,-203.2811,0.00024499,2]
[341921383,1731287451087,-203.2811,0.00024499,2]
[341921384,1731287451100,-203.2811,0.00024499,2]
[341921385,1731287451113,-203.2811,0.00024499,2]
[341921386,1731287451125,-203.2811,0.00024499,2]
[341921387,1731287451137,-203.2811,0.00024499,2]
[341921388,1731287451149,-203.2811,0.00024499,2]
[341921389,1731287451162,-203.281097,0.00024499,2]
[341921390,1731287451174,-5000.0,0.000245,2]
[341921391,1731287451186,-5000.0,0.000245,2]
[341921392,1731287451199,-5000.0,0.000245,2]
[341921393,1731287451209,-5000.0,0.000245,2]
[341921394,1731287451220,-5000.0,0.000245,2]
[341921395,1731287451232,-5000.0,0.000245,2]
[341921396,1731287451243,-5000.0,0.000245,2]
[341921397,1731287451256,-5000.0,0.000245,2]
[341921398,1731287451268,-5000.0,0.000245,2]
[341921399,1731287451280,-5000.0,0.000245,2]
[341921400,1731287451291,-5000.0,0.000245,2]
[341921401,1731287451304,-5000.0,0.000245,2]
[341921402,1731287451317,-5000.0,0.000245,2]
[341921403,1731287451330,-5000.0,0.000245,2]
[341921404,1731287451344,-5000.0,0.000245,2]
[341921405,1731287451355,-5000.0,0.000245,2]
[341921406,1731287451366,-5000.0,0.000245,2]
[341921407,1731287451376,-5000.0,0.000245,2]
[341921408,1731287451387,-5000.0,0.000245,2]
[341921409,1731287451399,-5000.0,0.000245,2]
[341921410,1731287451411,-5000.0,0.000245,2]
[341921411,1731287451424,-5000.0,0.000245,2]
[341921412,1731287451437,-629.81196352,0.000245,2]
[341921413,1731287451448,-1302.73118661,0.000245,2]
[341921414,1731287451459,-20468.10867324,0.00024522,2]
[341921415,1731287451470,-1000.0,0.00024556,2]
[341921416,1731287451482,-305.23169068,0.00024557,3]
[341921417,1731287451494,-517.51820838,0.00024557,2]
[341921418,1731287451505,-160.0,0.0002456,3]
[341921419,1731287451515,-55549.7593519,0.000246,2]
[341921420,1731287451526,-151.0,0.000246,7]
[341921421,1731287451537,-151.0,0.000246,7]
[341921422,1731287451548,-3000.0,0.000246,2]
[341921423,1731287451561,-3000.0,0.000246,2]
[341921424,1731287451572,-3000.0,0.0002461,2]
[341921425,1731287451583,-3000.0,0.0002461,2]
[341921426,1731287451593,-3000.0,0.0002462,2]
[341921427,1731287451604,-3000.0,0.0002462,2]
[341921428,1731287451615,-252.69,0.00024627,2]
[341921429,1731287451626,-250.0,0.00024627,2]
[341921430,1731287451636,-150.0,0.00024627,2]
[341921431,1731287451647,-1126.0,0.00024627,2]
[341921432,1731287451658,-529.0,0.00024627,2]
[341921433,1731287451669,-2392.0,0.00024627,2]
[341921434,1731287451680,-3000.0,0.0002463,2]
[341921435,1731287451691,-3000.0,0.0002463,2]
[341921436,1731287451701,-3000.0,0.0002464,2]
[341921437,1731287451712,-3000.0,0.0002464,2]
[341921438,1731287451723,-3000.0,0.0002465,2]
[341921439,1731287451736,-3000.0,0.0002465,2]
[341921440,1731287451746,-191.42606042,0.00024656,2]
[341921441,1731287451757,-500.0,0.00024656,2]
[341921442,1731287451768,-332.79716333,0.00024656,2]
[341921443,1731287451780,-373.81782602,0.00024656,2]
[341921444,1731287451790,-500.0,0.00024656,2]
[341921445,1731287451802,-385.40778258,0.00024656,2]
[341921446,1731287451815,-499.71250613,0.00024656,2]
[341921447,1731287451826,-490.01295434,0.00024656,2]
[341921448,1731287451836,-372.86706258,0.00024656,2]
[341921449,1731287451847,-500.0,0.00024656,2]
[341921450,1731287451857,-500.0,0.00024656,2]
[341921451,1731287451870,-500.0,0.00024656,2]
[341921452,1731287451880,-500.0,0.00024657,2]
[341921453,1731287451891,-500.0,0.00024657,2]
[341921454,1731287451902,-500.0,0.00024657,2]
[341921455,1731287451913,-501.5084308,0.00024657,2]
[341921456,1731287451924,-501.6427327,0.00024657,2]
[341921457,1731287451935,-500.0,0.00024657,2]
[341921458,1731287451946,-507.89139519,0.00024657,2]
[341921459,1731287451957,-500.0,0.00024657,2]
[341921460,1731287451968,-500.0,0.00024657,2]
[341921461,1731287451979,-516.036717,0.00024657,2]
[341921462,1731287451990,-500.0,0.00024657,2]
[341921463,1731287452001,-500.0,0.00024657,2]
[341921464,1731287452011,-500.0,0.00024657,2]
[341921465,1731287452022,-500.0,0.00024657,2]
[341921466,1731287452033,-500.0,0.00024657,2]
[341921467,1731287452044,-500.0,0.00024657,2]
[341921468,1731287452058,-500.0,0.00024657,2]
[341921469,1731287452069,-523.5581803,0.00024657,2]
[341921470,1731287452079,-500.0,0.00024657,2]
[341921471,1731287452090,-500.0,0.00024657,2]
[341921472,1731287452100,-509.86861745,0.00024657,2]
[341921473,1731287452112,-639.69912856,0.00024657,2]
[341921474,1731287452144,-500.0,0.00024657,15]
[341921475,1731287452155,-568.36743545,0.00024657,2]
[341921476,1731287452166,-500.0,0.00024657,2]
[341921477,1731287452177,-510.92725166,0.00024657,2]
[341921478,1731287452188,-532.27509647,0.00024657,2]
[341921479,1731287452199,-500.0,0.00024657,2]
[341921480,1731287452210,-500.0,0.00024657,2]
[341921481,1731287452221,-500.0,0.00024657,2]
[341921482,1731287452232,-500.0,0.00024657,2]
[341921483,1731287452243,-500.0,0.00024657,2]
[341921484,1731287452254,-500.0,0.00024657,2]
[341921485,1731287452265,-500.0,0.00024657,2]
[341921486,1731287452277,-500.0,0.00024657,2]
[341921487,1731287452288,-500.0,0.00024657,2]
[341921488,1731287452298,-500.0,0.00024657,2]
[341921489,1731287452311,-458.47404901,0.00024657,2]
[341921490,1731287452323,-500.0,0.00024657,2]
[341921491,1731287452334,-528.99017279,0.00024657,2]
[341921492,1731287452345,-500.0,0.00024657,2]
[341921493,1731287452355,-509.68905568,0.00024657,2]
[341921494,1731287452366,-500.0,0.00024657,2]
[341921495,1731287452377,-201.12263081,0.00024657,2]
[341921496,1731287452388,-500.0,0.00024657,2]
[341921497,1731287452400,-500.0,0.00024657,2]
[341921498,1731287452411,-500.0,0.00024657,2]
[341921499,1731287452422,-500.0,0.00024657,2]
[341921500,1731287452432,-500.0,0.00024657,2]
[341921501,1731287452444,-200.0,0.00024657,2]
[341921502,1731287452454,-519.26121529,0.00024657,2]
[341921503,1731287452465,-500.0,0.00024657,2]
[341921504,1731287452476,-351.74734531,0.00024657,2]
[341921505,1731287452487,-500.0,0.00024657,2]
[341921506,1731287452498,-348.88782277,0.00024657,2]
[341921507,1731287452509,-500.0,0.00024657,2]
[341921508,1731287452520,-512.74328888,0.00024657,2]
[341921509,1731287452531,-500.0,0.00024657,2]
[341921510,1731287452541,-500.0,0.00024657,2]
[341921511,1731287452554,-500.0,0.00024657,2]
[341921512,1731287452565,-500.0,0.00024657,2]
[341921513,1731287452576,-500.0,0.00024657,2]
[341921514,1731287452588,-500.0,0.00024657,2]
[341921515,1731287452599,-500.0,0.00024657,2]
[341921516,1731287452610,-500.0,0.00024657,2]
[341921517,1731287452622,-500.0,0.00024657,2]
[341921518,1731287452632,-500.0,0.00024657,2]
[341921519,1731287452642,-500.0,0.00024657,2]
[341921520,1731287452794,-500.0,0.00024657,2]
[341921521,1731287452850,-500.0,0.00024657,2]
[341921522,1731287452866,-500.0,0.00024657,2]
[341921523,1731287452875,-500.0,0.00024657,2]
[341921524,1731287452885,-503.63123892,0.00024657,2]
[341921525,1731287452894,-503.43504948,0.00024657,2]
[341921526,1731287452904,-500.0,0.00024657,2]
[341921527,1731287452913,-500.0,0.00024657,2]
[341921528,1731287452922,-500.0,0.00024657,2]
[341921529,1731287452932,-510.9600997,0.00024657,2]
[341921530,1731287452941,-500.0,0.00024657,2]
[341921531,1731287452950,-500.0,0.00024657,2]
[341921532,1731287452959,-500.0,0.00024657,2]
[341921533,1731287452968,-500.0,0.00024657,2]
[341921534,1731287452978,-500.0,0.00024657,2]
[341921535,1731287452987,-500.0,0.00024657,2]
[341921536,1731287452997,-500.0,0.00024657,2]
[341921537,1731287453006,-682.74,0.00024657,2]
[341921538,1731287453016,-521.27405281,0.00024657,2]
[341921539,1731287453025,-500.0,0.00024657,2]
[341921540,1731287453035,-500.0,0.00024657,2]
[341921541,1731287453044,-500.0,0.00024657,2]
[341921542,1731287453058,-500.0,0.00024657,2]
[341921543,1731287453071,-500.0,0.00024657,2]
[341921544,1731287453080,-500.0,0.00024657,2]
[341921545,1731287453090,-500.0,0.00024657,2]
[341921546,1731287453099,-500.0,0.00024657,2]
[341921547,1731287453108,-500.0,0.00024657,2]
[341921548,1731287453117,-500.0,0.00024657,2]
[341921549,1731287453126,-500.0,0.00024657,2]
[341921550,1731287453136,-500.0,0.00024657,2]
[341921551,1731287453145,-253.923298,0.00024657,2]
[341921552,1731287453155,-502.71812989,0.00024657,2]
[341921553,1731287453165,-200.0,0.00024657,2]
[341921554,1731287453175,-500.0,0.00024657,2]
[341921555,1731287453185,-834.28,0.00024657,2]
[341921556,1731287453195,-500.0,0.00024657,2]
[341921557,1731287453204,-500.0,0.00024657,2]
[341921558,1731287453213,-198.01149417,0.00024657,2]
[341921559,1731287453222,-500.0,0.00024657,2]
[341921560,1731287453231,-500.0,0.00024657,2]
[341921561,1731287453241,-500.0,0.00024657,2]
[341921562,1731287453250,-500.0,0.00024657,2]
[341921563,1731287453260,-500.0,0.00024657,2]
[341921564,1731287453269,-500.0,0.00024657,2]
[341921565,1731287453279,-500.0,0.00024657,2]
[341921566,1731287453287,-326.77165533,0.00024657,2]
[341921567,1731287453297,-525.65903213,0.00024657,2]
[341921568,1731287453312,-500.0,0.00024657,2]
[341921569,1731287453322,-500.0,0.00024657,2]
[341921570,1731287453331,-500.0,0.00024657,2]
[341921571,1731287453340,-500.0,0.00024657,2]
[341921572,1731287453350,-500.0,0.00024657,2]
[341921573,1731287453359,-257.84340062,0.00024657,2]
[341921574,1731287453369,-500.0,0.00024657,2]
[341921575,1731287453379,-500.0,0.00024657,2]
[341921576,1731287453388,-500.0,0.00024657,2]
[341921577,1731287453398,-500.0,0.00024657,2]
[341921578,1731287453408,-500.0,0.00024657,2]
[341921579,1731287453418,-348.8975375,0.00024657,2]
[341921580,1731287453427,-500.0,0.00024657,2]
[341921581,1731287453436,-500.0,0.00024657,2]
[341921582,1731287453446,-500.0,0.00024657,2]
[341921583,1731287453455,-500.0,0.00024657,2]
[341921584,1731287453464,-500.0,0.00024657,2]
[341921585,1731287453474,-500.0,0.00024657,2]
[341921586,1731287453483,-500.0,0.00024657,2]
[341921587,1731287453492,-2054.93,0.00024657,2]
[341921588,1731287453502,-500.0,0.00024657,2]
[341921589,1731287453511,-2336.0,0.00024657,2]
[341921590,1731287453520,-500.0,0.00024657,2]
[341921591,1731287453530,-683.77,0.00024657,2]
[341921592,1731287453540,-500.0,0.00024657,2]
[341921593,1731287453549,-500.0,0.00024657,2]
[341921594,1731287453561,-500.0,0.00024657,2]
[341921595,1731287453571,-500.0,0.00024657,2]
[341921596,1731287453582,-500.0,0.00024657,2]
[341921597,1731287453591,-500.0,0.00024657,2]
[341921598,1731287453600,-1014.28,0.00024657,2]
[341921599,1731287453610,-500.0,0.00024657,2]
[341921600,1731287453619,-1121.85,0.00024657,2]
[341921601,1731287453628,-500.0,0.00024657,2]
[341921602,1731287453638,-500.0,0.00024657,2]
[341921603,1731287453647,-500.0,0.00024657,2]
[341921604,1731287453657,-500.0,0.00024657,2]
[341921605,1731287453667,-500.0,0.00024657,2]
[341921606,1731287453676,-500.0,0.00024657,2]
[341921607,1731287453686,-2028.23,0.00024657,2]
[341921608,1731287453695,-500.0,0.00024657,2]
[341921609,1731287453704,-482.42200163,0.00024657,2]
[341921610,1731287453714,-500.0,0.00024657,2]
[341921611,1731287453724,-150.0,0.00024657,2]
[341921612,1731287453738,-500.0,0.00024657,2]
[341921613,1731287453747,-500.0,0.00024657,2]
[341921614,1731287453757,-506.00306718,0.00024657,2]
[341921615,1731287453767,-150.0,0.00024657,2]
[341921616,1731287453778,-500.0,0.00024657,2]
[341921617,1731287453787,-500.0,0.00024657,2]
[341921618,1731287453799,-500.0,0.00024657,2]
[341921619,1731287453812,-500.0,0.00024657,2]
[341921620,1731287453821,-500.0,0.00024657,2]
[341921621,1731287453831,-500.0,0.00024657,2]
[341921622,1731287453840,-1777.91,0.00024657,2]
[341921623,1731287453849,-500.0,0.00024657,2]
[341921624,1731287453858,-500.0,0.00024657,2]
[341921625,1731287453868,-500.0,0.00024657,2]
[341921626,1731287453877,-500.0,0.00024657,2]
[341921627,1731287453886,-500.0,0.00024657,2]
[341921628,1731287453898,-500.0,0.00024657,2]
[341921629,1731287453911,-500.0,0.00024657,2]
[341921630,1731287453920,-500.0,0.00024657,2]
[341921631,1731287453930,-500.0,0.00024657,2]
[341921632,1731287453942,-500.0,0.00024657,2]
[341921633,1731287453956,-502.12051968,0.00024657,2]
[341921634,1731287453965,-500.0,0.00024657,2]
[341921635,1731287453974,-500.0,0.00024657,2]
[341921636,1731287453983,-1120.98,0.00024657,2]
[341921637,1731287453993,-500.0,0.00024657,2]
[341921638,1731287454002,-500.0,0.00024657,2]
[341921639,1731287454011,-500.0,0.00024657,2]
[341921640,1731287454021,-500.0,0.00024657,2]
[341921641,1731287454030,-500.0,0.00024657,2]
[341921642,1731287454039,-500.0,0.00024657,2]
[341921643,1731287454048,-500.0,0.00024657,2]
[341921644,1731287454059,-500.0,0.00024657,2]
[341921645,1731287454069,-500.0,0.00024657,2]
[341921646,1731287454078,-500.0,0.00024657,2]
[341921647,1731287454087,-500.0,0.00024657,2]
[341921648,1731287454097,-807.8,0.00024657,2]
[341921649,1731287454106,-508.73102846,0.00024657,2]
[341921650,1731287454115,-500.0,0.00024657,2]
[341921651,1731287454125,-503.08182075,0.00024657,2]
[341921652,1731287454134,-500.0,0.00024657,2]
[341921653,1731287454144,-500.0,0.00024657,2]
[341921654,1731287454153,-500.0,0.00024657,2]
[341921655,1731287454163,-500.0,0.00024657,2]
[341921656,1731287454172,-500.0,0.00024657,2]
[341921657,1731287454181,-500.0,0.00024657,2]
[341921658,1731287454190,-503.37083985,0.00024657,2]